{"text_format":"1","workbook":"xlsx","n_sheets":5,"sheets":["Basic Dataset","Find and Replace","Formula","Flash Fill","VBA Code"],"not_rendered":{"charts":0,"images":0,"macros":1,"external_links":0,"defined_names":0,"comments":0,"pivot_tables":0},"unopened":[],"bounds":{"document_bytes":16777216,"sheet_cells":100000,"rows_first":2000,"rows_last":500,"rows_between":2000,"halvings":0,"cell_chars":16384,"cell_head_chars":4096},"cells_cut":0,"cells_raw":0,"read":"whole","date_system":"1900"}

{"sheet":"Basic Dataset","index":0,"n_rows":15,"n_cols":3,"rows_kept":15,"cut":false,"hidden":false,"merged":[[1,1,1,2]]}
[]
[null,"Influential Businessmen and Their Origin"]
[]
[null,"Name & Country","Name Only"]
[null,"Andrew Carnegie, Scotland"]
[null,"Steve Jobs, USA"]
[null,"Penny Streeter, Zimbabwe"]
[null,"Mark Zuckerberg, USA"]
[null,"Jeff Bezos, USA"]
[null,"Bill Gates, USA"]
[null,"Matthew Boulton, UK"]
[null,"Sergey Brin, Russia"]
[null,"Sir Richard Branson, UK"]
[null,"Carlos Slim Helu, Mexico"]
[null,"Ariana Huffington, Greece"]

{"sheet":"Find and Replace","index":1,"n_rows":15,"n_cols":14,"rows_kept":15,"cut":false,"hidden":false,"merged":[[1,1,1,2]]}
[]
[null,"Usage of Find and Replace"]
[]
[null,"Name & Country","Name Only"]
[null,"Andrew Carnegie, Scotland","Andrew Carnegie"]
[null,"Steve Jobs, USA","Steve Jobs"]
[null,"Penny Streeter, Zimbabwe","Penny Streeter"]
[null,"Mark Zuckerberg, USA","Mark Zuckerberg"]
[null,"Jeff Bezos, USA","Jeff Bezos",null,null,null,null,null,null,null,null,null,null," "]
[null,"Bill Gates, USA","Bill Gates"]
[null,"Matthew Boulton, UK","Matthew Boulton"]
[null,"Sergey Brin, Russia","Sergey Brin"]
[null,"Sir Richard Branson, UK","Sir Richard Branson"]
[null,"Carlos Slim Helu, Mexico","Carlos Slim Helu"]
[null,"Ariana Huffington, Greece","Ariana Huffington"]

{"sheet":"Formula","index":2,"n_rows":15,"n_cols":3,"rows_kept":15,"cut":false,"hidden":false,"merged":[[1,1,1,2]]}
[]
[null,"Usage of Formula"]
[]
[null,"Name & Country","Name Only"]
[null,"Andrew Carnegie, Scotland",{"$f":"LEFT(B5,FIND(\",\",B5)-1)","v":"Andrew Carnegie"}]
[null,"Steve Jobs, USA",{"$f":"LEFT(B6,FIND(\",\",B6)-1)","v":"Steve Jobs"}]
[null,"Penny Streeter, Zimbabwe","Penny Streeter"]
[null,"Mark Zuckerberg, USA","Mark Zuckerberg"]
[null,"Jeff Bezos, USA","Jeff Bezos"]
[null,"Bill Gates, USA","Bill Gates"]
[null,"Matthew Boulton, UK","Matthew Boulton"]
[null,"Sergey Brin, Russia","Sergey Brin"]
[null,"Sir Richard Branson, UK","Sir Richard Branson"]
[null,"Carlos Slim Helu, Mexico","Carlos Slim Helu"]
[null,"Ariana Huffington, Greece","Ariana Huffington"]

{"sheet":"Flash Fill","index":3,"n_rows":15,"n_cols":3,"rows_kept":15,"cut":false,"hidden":false,"merged":[[1,1,1,2]]}
[]
[null,"Usage of Flash Fill"]
[]
[null,"Name & Country","Name Only"]
[null,"Andrew Carnegie, Scotland","Andrew Carnegie"]
[null,"Steve Jobs, USA","Steve Jobs"]
[null,"Penny Streeter, Zimbabwe","Penny Streeter"]
[null,"Mark Zuckerberg, USA","Mark Zuckerberg"]
[null,"Jeff Bezos, USA","Jeff Bezos"]
[null,"Bill Gates, USA","Bill Gates"]
[null,"Matthew Boulton, UK","Matthew Boulton"]
[null,"Sergey Brin, Russia","Sergey Brin"]
[null,"Sir Richard Branson, UK","Sir Richard Branson"]
[null,"Carlos Slim Helu, Mexico","Carlos Slim Helu"]
[null,"Ariana Huffington, Greece","Ariana Huffington"]

{"sheet":"VBA Code","index":4,"n_rows":15,"n_cols":3,"rows_kept":15,"cut":false,"hidden":false,"merged":[[1,1,1,2]]}
[]
[null,"Usage of VBA Code"]
[]
[null,"Name & Country","Name Only"]
[null,"Andrew Carnegie, Scotland",{"$f":"LEFT(B5,CharLoc(B5,\",\")-1)","v":"Andrew Carnegie"}]
[null,"Steve Jobs, USA",{"$f":"LEFT(B6,CharLoc(B6,\",\")-1)","v":"Steve Jobs"}]
[null,"Penny Streeter, Zimbabwe",{"$f":"LEFT(B7,CharLoc(B7,\",\")-1)","v":"Penny Streeter"}]
[null,"Mark Zuckerberg, USA",{"$f":"LEFT(B8,CharLoc(B8,\",\")-1)","v":"Mark Zuckerberg"}]
[null,"Jeff Bezos, USA",{"$f":"LEFT(B9,CharLoc(B9,\",\")-1)","v":"Jeff Bezos"}]
[null,"Bill Gates, USA",{"$f":"LEFT(B10,CharLoc(B10,\",\")-1)","v":"Bill Gates"}]
[null,"Matthew Boulton, UK",{"$f":"LEFT(B11,CharLoc(B11,\",\")-1)","v":"Matthew Boulton"}]
[null,"Sergey Brin, Russia",{"$f":"LEFT(B12,CharLoc(B12,\",\")-1)","v":"Sergey Brin"}]
[null,"Sir Richard Branson, UK",{"$f":"LEFT(B13,CharLoc(B13,\",\")-1)","v":"Sir Richard Branson"}]
[null,"Carlos Slim Helu, Mexico",{"$f":"LEFT(B14,CharLoc(B14,\",\")-1)","v":"Carlos Slim Helu"}]
[null,"Ariana Huffington, Greece",{"$f":"LEFT(B15,CharLoc(B15,\",\")-1)","v":"Ariana Huffington"}]